fUST/lending_fUST_20250724
["ID","MTS","AMOUNT","RATE_DAILY","PERIOD"]
[374491977,1753320641071,-460.0,0.00019178,2]
[374491978,1753320641082,-460.0,0.00019178,2]
[374491979,1753320641092,-460.0,0.00019178,2]
[374491980,1753320641103,-460.0,0.00019178,2]
[374491981,1753320641113,-460.0,0.00019178,2]
[374491982,1753320641123,-460.0,0.00019178,2]
[374491983,1753320641132,-460.0,0.00019178,2]
[374491984,1753320641142,-460.0,0.00019178,2]
[374491985,1753320641152,-460.0,0.00019178,2]
[374491986,1753320641162,-1252.71,0.00019178,2]
[374491987,1753320641172,-460.0,0.00019178,2]
[374491988,1753320641181,-460.0,0.00019178,2]
[374491989,1753320641191,-460.0,0.00019178,2]
[374491990,1753320641200,-460.0,0.00019178,2]
[374491991,1753320641210,-460.0,0.00019178,2]
[374491992,1753320641220,-896.44,0.00019178,2]
[374491993,1753320641230,-460.0,0.00019178,2]
[374491994,1753320641239,-460.0,0.00019178,2]
[374491995,1753320641249,-863.55,0.00019178,2]
[374491996,1753320641258,-462.32236347,0.00019178,2]
[374491997,1753320641267,-460.0,0.00019178,2]
[374491998,1753320641277,-460.0,0.00019178,2]
[374491999,1753320641286,-460.0,0.00019178,2]
[374492000,1753320641295,-564.33,0.00019178,2]
[374492001,1753320641305,-460.0,0.00019178,2]
[374492002,1753320641315,-476.35723583,0.00019178,2]
[374492003,1753320641326,-460.0,0.00019178,2]
[374492004,1753320641336,-460.55147162,0.00019178,2]
[374492005,1753320641346,-200.51676199,0.00019178,2]
[374492006,1753320641356,-461.19406244,0.00019178,2]
[374492007,1753320641366,-467.8767341,0.00019178,2]
[374492008,1753320641375,-468.33186224,0.00019178,2]
[374492009,1753320641385,-460.0,0.00019178,2]
[374492010,1753320641395,-463.03506197,0.00019178,2]
[374492011,1753320641404,-460.0,0.00019178,2]
[374492012,1753320641414,-302.60665372,0.00019191,2]
[374492013,1753320641423,-303.27197707,0.00019381,2]
[374492014,1753320641433,-460.0,0.00019452,2]
[374492015,1753320641442,-460.0,0.00019452,2]
[374492016,1753320641452,-460.0,0.00019452,2]
[374492017,1753320641461,-460.0,0.00019452,2]
[374492018,1753320641471,-460.0,0.00019452,2]
[374492019,1753320641480,-515.05,0.00019452,2]
[374492020,1753320641490,-460.0,0.00019452,2]
[374492021,1753320641499,-460.0,0.00019452,2]
[374492022,1753320641509,-460.0,0.00019452,2]
[374492023,1753320641520,-460.0,0.00019452,2]
[374492024,1753320641528,-460.0,0.00019452,2]
[374492025,1753320641539,-460.0,0.00019452,2]
[374492026,1753320641548,-460.0,0.00019452,2]
[374492027,1753320641558,-694.62,0.00019452,2]
[374492028,1753320641568,-460.0,0.00019452,2]
[374492029,1753320641577,-460.0,0.00019452,2]
[374492030,1753320641586,-460.0,0.00019452,2]
[374492031,1753320641598,-460.0,0.00019452,2]
[374492032,1753320641607,-460.0,0.00019452,2]
[374492033,1753320641616,-436.3044769,0.00019452,2]
[374492034,1753320641626,-460.0,0.00019452,2]
[374492035,1753320641635,-460.0,0.00019452,2]
[374492036,1753320641645,-460.0,0.00019452,2]
[374492037,1753320641654,-460.0,0.00019452,2]
[374492038,1753320641663,-460.0,0.00019452,2]
[374492039,1753320641674,-460.0,0.00019452,2]
[374492040,1753320641684,-460.0,0.00019452,2]
[374492041,1753320641694,-460.0,0.00019452,2]
[374492042,1753320641704,-367.00235644,0.00019452,2]
[374492043,1753320641713,-460.0,0.00019452,2]
[374492044,1753320641722,-523.47,0.00019452,2]
[374492045,1753320641732,-460.0,0.00019452,2]
[374492046,1753320641741,-460.0,0.00019452,2]
[374492047,1753320641751,-460.0,0.00019452,2]
[374492048,1753320641760,-592.2528239,0.00019452,2]
[374492049,1753320641769,-460.0,0.00019452,2]
[374492050,1753320641779,-460.0,0.00019452,2]
[374492051,1753320641789,-460.0,0.00019452,2]
[374492052,1753320641798,-460.0,0.00019452,2]
[374492053,1753320641807,-460.0,0.00019452,2]
[374492054,1753320641816,-460.0,0.00019452,2]
[374492055,1753320641826,-460.0,0.00019452,2]
[374492056,1753320641835,-460.0,0.00019452,2]
[374492057,1753320641844,-460.0,0.00019452,2]
[374492058,1753320641855,-460.0,0.00019452,2]
[374492059,1753320641864,-460.0,0.00019452,2]
[374492060,1753320641873,-460.0,0.00019452,2]
[374492061,1753320641883,-460.0,0.00019452,2]
[374492062,1753320641893,-460.0,0.00019452,2]
[374492063,1753320641903,-460.0,0.00019452,2]
[374492064,1753320641914,-460.0,0.00019452,2]
[374492065,1753320641925,-460.0,0.00019452,2]
[374492066,1753320641935,-460.0,0.00019452,2]
[374492067,1753320641946,-460.0,0.00019452,2]
[374492068,1753320641956,-460.0,0.00019452,2]
[374492069,1753320641966,-460.0,0.00019452,2]
[374492070,1753320641977,-460.0,0.00019452,2]
[374492071,1753320641986,-460.0,0.00019452,2]
[374492072,1753320641996,-460.0,0.00019452,2]
[374492073,1753320642005,-460.0,0.00019452,2]
[374492074,1753320642015,-463.13,0.00019452,2]
[374492075,1753320642024,-460.0,0.00019452,2]
[374492076,1753320642034,-460.0,0.00019452,2]
[374492077,1753320642043,-1698.62,0.00019452,2]
[374492078,1753320642053,-460.0,0.00019452,2]
[374492079,1753320642062,-460.0,0.00019452,2]
[374492080,1753320642071,-460.0,0.00019452,2]
[374492081,1753320642081,-460.0,0.00019452,2]
[374492082,1753320642090,-1381.59,0.00019452,2]
[374492083,1753320642100,-460.0,0.00019452,2]
[374492084,1753320642109,-460.0,0.00019452,2]
[374492085,1753320642118,-460.0,0.00019452,2]
[374492086,1753320642128,-1464.81,0.00019452,2]
[374492087,1753320642138,-3567.03,0.00019452,2]
[374492088,1753320642147,-460.0,0.00019452,2]
[374492089,1753320642157,-460.0,0.00019452,2]
[374492090,1753320642167,-460.0,0.00019452,2]
[374492091,1753320642178,-460.0,0.00019452,2]
[374492092,1753320642187,-460.0,0.00019452,2]
[374492093,1753320642197,-460.0,0.00019452,2]
[374492094,1753320642206,-460.0,0.00019452,2]
[374492095,1753320642215,-460.0,0.00019452,2]
[374492096,1753320642225,-206.14702574,0.00019452,2]
[374492097,1753320642235,-908.14,0.00019452,2]
[374492098,1753320642245,-460.0,0.00019452,2]
[374492099,1753320642254,-460.0,0.00019452,2]
[374492100,1753320642263,-460.0,0.00019452,2]
[374492101,1753320642273,-460.0,0.00019452,2]
[374492103,1753320642282,-460.0,0.00019452,2]
[374492105,1753320642292,-987.52,0.00019452,2]
[374492107,1753320642301,-460.0,0.00019452,2]
[374492109,1753320642312,-460.0,0.00019452,2]
[374492111,1753320642322,-460.0,0.00019452,2]
[374492124,1753320642443,-460.0,0.00019452,2]
[374492125,1753320642454,-460.0,0.00019452,2]
[374492126,1753320642464,-3250.42,0.00019452,2]
[374492127,1753320642473,-460.0,0.00019452,2]
[374492128,1753320642483,-1049.99,0.00019452,2]
[374492129,1753320642492,-460.0,0.00019452,2]
[374492130,1753320642502,-460.0,0.00019452,2]
[374492131,1753320642511,-460.0,0.00019452,2]
[374492132,1753320642520,-460.0,0.00019452,2]
[374492133,1753320642531,-1252.71,0.00019452,2]
[374492134,1753320642540,-274.68720444,0.00019452,2]
[374492135,1753320642550,-460.0,0.00019452,2]
[374492136,1753320642559,-460.0,0.00019452,2]
[374492137,1753320642569,-460.0,0.00019452,2]
[374492138,1753320642578,-460.0,0.00019452,2]
[374492139,1753320642589,-896.44,0.00019452,2]
[374492140,1753320642603,-863.55,0.00019452,2]
[374492141,1753320642613,-460.0,0.00019452,2]
[374492142,1753320642622,-460.0,0.00019452,2]
[374492143,1753320642631,-564.33,0.00019452,2]
[374492144,1753320642641,-470.95172703,0.00019452,2]
[374492145,1753320642651,-460.0,0.00019452,2]
[374492147,1753320642660,-460.0,0.00019452,2]
[374492149,1753320642670,-470.58285858,0.00019452,2]
[374492150,1753320642680,-150.0,0.00019592,2]
[374492152,1753320642692,-2637.34678284,0.00019626,2]
[374492154,1753320642702,-179.71246006,0.00019655,2]
[374492156,1753320642711,-169.0,0.00019699,3]
[374492158,1753320642721,-161.13038984,0.00019726,2]
[374492160,1753320642731,-500.0,0.00019726,2]
[374492162,1753320642740,-630.67217901,0.00019726,2]
[374492164,1753320642749,-500.0,0.00019726,2]
[374492166,1753320642758,-460.0,0.00019726,2]
[374492168,1753320642768,-460.0,0.00019726,2]
[374492170,1753320642777,-460.0,0.00019726,2]
[374492172,1753320642786,-515.05,0.00019726,2]
[374492174,1753320642796,-460.0,0.00019726,2]
[374492176,1753320642805,-460.0,0.00019726,2]
[374492178,1753320642814,-460.0,0.00019726,2]
[374492180,1753320642824,-694.62,0.00019726,2]
[374492182,1753320642834,-460.0,0.00019726,2]
[374492184,1753320642843,-460.0,0.00019726,2]
[374492187,1753320642853,-460.0,0.00019726,2]
[374492188,1753320642862,-460.0,0.00019726,2]
[374492191,1753320642872,-460.0,0.00019726,2]
[374492193,1753320642882,-460.0,0.00019726,2]
[374492195,1753320642892,-460.0,0.00019726,2]
[374492197,1753320642903,-523.47,0.00019726,2]
[374492198,1753320642914,-460.0,0.00019726,2]
[374492200,1753320642924,-460.0,0.00019726,2]
[374492202,1753320642935,-460.0,0.00019726,2]
[374492205,1753320642944,-340.2620098,0.00019726,2]
[374492206,1753320642954,-460.0,0.00019726,2]
[374492209,1753320642963,-460.0,0.00019726,2]
[374492211,1753320642972,-460.0,0.00019726,2]
[374492212,1753320642982,-460.0,0.00019726,2]
[374492215,1753320642991,-460.0,0.00019726,2]
[374492216,1753320643001,-460.0,0.00019726,2]
[374492218,1753320643010,-460.0,0.00019726,2]
[374492220,1753320643019,-460.0,0.00019726,2]
[374492222,1753320643028,-460.0,0.00019726,2]
[374492223,1753320643038,-460.0,0.00019726,2]
[374492224,1753320643048,-460.0,0.00019726,2]
[374492225,1753320643057,-460.0,0.00019726,2]
[374492226,1753320643067,-460.0,0.00019726,2]
[374492227,1753320643077,-460.0,0.00019726,2]
[374492228,1753320643086,-460.0,0.00019726,2]
[374492230,1753320643096,-460.0,0.00019726,2]
[374492231,1753320643106,-463.13,0.00019726,2]
[374492232,1753320643116,-205.42194417,0.00019726,2]
[374492233,1753320643126,-1698.62,0.00019726,2]
[374492234,1753320643136,-460.0,0.00019726,2]
[374492235,1753320643146,-460.0,0.00019726,2]
[374492236,1753320643155,-1381.59,0.00019726,2]
[374492237,1753320643165,-460.0,0.00019726,2]
[374492238,1753320643174,-1464.81,0.00019726,2]
[374492239,1753320643184,-3567.03,0.00019726,2]
[374492240,1753320643194,-460.0,0.00019726,2]
[374492241,1753320643203,-460.0,0.00019726,2]
[374492242,1753320643212,-460.0,0.00019726,2]
[374492243,1753320643222,-460.0,0.00019726,2]
[374492244,1753320643231,-460.0,0.00019726,2]
[374492245,1753320643241,-908.14,0.00019726,2]
[374492246,1753320643250,-460.0,0.00019726,2]
[374492247,1753320643260,-460.0,0.00019726,2]
[374492248,1753320643269,-460.0,0.00019726,2]
[374492249,1753320643279,-460.0,0.00019726,2]
[374492250,1753320643288,-987.52,0.00019726,2]
[374492251,1753320643302,-460.0,0.00019726,2]
[374492252,1753320643311,-460.0,0.00019726,2]
[374492253,1753320643320,-460.0,0.00019726,2]
[374492254,1753320643330,-460.0,0.00019726,2]
[374492255,1753320643339,-460.0,0.00019726,2]
[374492256,1753320643349,-460.0,0.00019726,2]
[374492257,1753320643360,-3250.42,0.00019726,2]
[374492258,1753320643370,-1049.99,0.00019726,2]
[374492259,1753320643379,-460.0,0.00019726,2]
[374492260,1753320643389,-460.0,0.00019726,2]
[374492261,1753320643398,-460.0,0.00019726,2]
[374492262,1753320643407,-460.0,0.00019726,2]
[374492263,1753320643416,-1252.71,0.00019726,2]
[374492264,1753320643425,-460.0,0.00019726,2]
[374492265,1753320643435,-460.0,0.00019726,2]
[374492266,1753320643445,-460.0,0.00019726,2]
[374492267,1753320643455,-460.0,0.00019726,2]
[374492268,1753320643465,-896.44,0.00019726,2]
[374492269,1753320643474,-863.55,0.00019726,2]
[374492270,1753320643483,-460.0,0.00019726,2]
[374492271,1753320643493,-460.0,0.00019726,2]
[374492272,1753320643502,-564.33,0.00019726,2]
[374492273,1753320643512,-460.0,0.00019726,2]
[374492274,1753320643521,-307.20198675,0.00019726,2]
[374492275,1753320643531,-1050.04450122,0.000199,2]
[374492276,1753320643540,-500.0,0.00019913,2]
[374492277,1753320643550,-500.0,0.00019913,2]
[374492278,1753320643559,-526.53794159,0.00019913,2]
[374492279,1753320643569,-500.0,0.00019973,2]
[374492280,1753320643579,-460.0,0.0002,2]
[374492281,1753320643589,-151.0,0.0002,2]
[374492282,1753320643605,-151.0,0.0002,2]
[374492283,1753320643614,-460.0,0.0002,2]
[374492284,1753320643624,-515.05,0.0002,2]
[374492285,1753320643634,-470.9383,0.0002,2]
[374492286,1753320643644,-470.9383,0.0002,2]
[374492287,1753320643653,-161.180302,0.0002,2]
[374492288,1753320643663,-460.0,0.0002,2]
[374492289,1753320643674,-161.180302,0.0002,2]
[374492290,1753320643684,-329.23338,0.0002,2]
[374492291,1753320643694,-329.23338,0.0002,2]
[374492292,1753320643704,-460.0,0.0002,2]
[374492293,1753320643714,-460.0,0.0002,2]
[374492294,1753320643723,-694.62,0.0002,2]
[374492295,1753320643733,-460.0,0.0002,2]
[374492296,1753320643742,-460.0,0.0002,2]
[374492297,1753320643751,-460.0,0.0002,2]
[374492298,1753320643761,-460.0,0.0002,2]
[374492299,1753320643770,-523.47,0.0002,2]
[374492300,1753320643779,-460.0,0.0002,2]
[374492301,1753320643788,-460.0,0.0002,2]
[374492303,1753320643798,-460.0,0.0002,2]
[374492304,1753320643809,-460.0,0.0002,2]
[374492305,1753320643818,-460.0,0.0002,2]
[374492306,1753320643827,-460.0,0.0002,2]
[374492307,1753320643837,-460.0,0.0002,2]
[374492308,1753320643846,-460.0,0.0002,2]
[374492309,1753320643857,-460.0,0.0002,2]
[374492310,1753320643866,-460.0,0.0002,2]
[374492311,1753320643875,-460.0,0.0002,2]
[374492312,1753320643886,-460.0,0.0002,2]
[374492313,1753320643895,-460.0,0.0002,2]
[374492314,1753320643905,-460.0,0.0002,2]
[374492315,1753320643914,-460.0,0.0002,2]
[374492316,1753320643923,-463.13,0.0002,2]
[374492317,1753320643933,-1698.62,0.0002,2]
[374492318,1753320643942,-460.0,0.0002,2]
[374492319,1753320643953,-460.0,0.0002,2]
[374492320,1753320643962,-1381.59,0.0002,2]
[374492321,1753320643972,-460.0,0.0002,2]
[374492322,1753320643981,-1464.81,0.0002,2]
[374492323,1753320643990,-3567.03,0.0002,2]
[374492324,1753320644000,-460.0,0.0002,2]
[374492325,1753320644010,-538.17980921,0.0002,2]
[374492326,1753320644019,-460.0,0.0002,2]
[374492327,1753320644028,-460.0,0.0002,2]
[374492328,1753320644038,-7000.0,0.0002,2]
[374492329,1753320644048,-9736.49436581,0.0002,2]
[374492330,1753320644057,-908.14,0.0002,2]
[374492331,1753320644067,-46673.67622095,0.0002,2]
[374492332,1753320644076,-460.0,0.0002,2]
[374492333,1753320644086,-460.0,0.0002,2]
[374492334,1753320644095,-460.0,0.0002,2]
[374492335,1753320644105,-460.0,0.0002,2]
[374492336,1753320644115,-460.0,0.0002,2]
[374492337,1753320644124,-987.52,0.0002,2]
[374492338,1753320644133,-460.0,0.0002,2]
[374492339,1753320644142,-460.0,0.0002,2]
[374492340,1753320644151,-460.0,0.0002,2]
[374492341,1753320644161,-460.0,0.0002,2]
[374492342,1753320644170,-3250.42,0.0002,2]
[374492343,1753320644179,-1049.99,0.0002,2]
[374492344,1753320644189,-460.0,0.0002,2]
[374492345,1753320644198,-460.0,0.0002,2]
[374492346,1753320644208,-460.0,0.0002,2]
[374492347,1753320644217,-1252.71,0.0002,2]
[374492348,1753320644227,-460.0,0.0002,2]
[374492349,1753320644237,-460.0,0.0002,2]
[374492350,1753320644247,-460.0,0.0002,2]
[374492351,1753320644256,-460.0,0.0002,2]
[374492352,1753320644266,-896.44,0.0002,2]
[374492353,1753320644275,-863.55,0.0002,2]
[374492354,1753320644284,-460.0,0.0002,2]
[374492355,1753320644293,-460.0,0.0002,2]
[374492356,1753320644303,-564.33,0.0002,2]
[374492357,1753320644312,-437.90366031,0.0002,2]
[374492358,1753320644322,-544.47148105,0.00020077,2]
[374492359,1753320644331,-112.35287815,0.00020183,2]
[374492366,1753320644572,-21.16,0.00020183,2]
[374492389,1753320644804,-460.0,0.00019178,2]
[374492391,1753320644814,-490.68239967,0.00019178,2]
[374492393,1753320644823,-264.12109071,0.00019178,2]
[374492395,1753320644832,-468.67635745,0.00019452,2]
[374492396,1753320644841,-1358.83278936,0.00020183,2]
[374493212,1753320746132,1626.0,0.00018,2]
[374493213,1753320902618,229.719895,0.00017964,2]
[374493214,1753320963095,232.85754089,0.000222,69]
[374493215,1753320992948,500.38,0.00026027,120]
[374493216,1753321065986,262.992443,0.00013699,2]
[374493221,1753321243908,151.0,0.00023,30]
[374493222,1753321313738,7081.6474431,0.00017987,2]
[374493223,1753321389571,1880.82526755,0.00018,2]
[374493226,1753321508897,1959.00805778,0.00018,2]
[374493227,1753321533969,300.0,7.1e-07,120]
[374493228,1753321539100,-300.0,0.00018074,2]
[374493229,1753321539121,-300.0,0.00018074,2]
[374493230,1753321539143,-1200.0,0.00018074,2]
[374493231,1753321539166,-88.92204181,0.00018074,2]
[374493232,1753321540453,300.0,7.1e-07,120]
[374493233,1753321548379,300.0,7.1e-07,120]
[374493234,1753321556516,300.0,7.1e-07,120]
[374493235,1753321563918,300.0,7.1e-07,120]
[374493236,1753321570475,300.0,7.1e-07,120]
[374493237,1753321577966,300.0,7.1e-07,120]
[374493238,1753321595337,215.46798578,0.00017974,2]
[374493239,1753321597134,300.0,7.1e-07,120]
[374493240,1753321608708,300.0,7.1e-07,120]
[374493241,1753321617564,300.0,7.1e-07,120]
[374493242,1753321619717,150.0,0.00022948,30]
[374493243,1753321627435,300.0,7.1e-07,120]
[374493244,1753321649091,-211.07795819,0.00018074,2]
[374493245,1753321649253,-300.0,0.00018074,2]
[374493246,1753321649274,-647.85862201,0.00018074,2]
[374493247,1753321651098,-552.14137799,0.00018074,2]
[374493248,1753321651118,-300.0,0.00018074,2]
[374493249,1753321651138,-55.43667565,0.00018075,2]
[374493277,1753321832765,-1200.0,0.00018074,2]
[374493278,1753321832775,-8947.52763875,0.00018075,2]
[374493281,1753321832786,-252.31330277,0.0001822,2]
[374493284,1753321832802,-166.91,0.000185,2]
[374493285,1753321832816,-300.0,0.00018766,2]
[374493286,1753321832825,-300.0,0.00018766,2]
[374493287,1753321832835,-639.86154914,0.00018767,2]
[374493288,1753321832844,-282.47620006,0.000189,2]
[374493289,1753321832854,-67.68083901,0.00019068,2]
[374493292,1753321832866,-3554.19365903,0.00019068,2]
[374493293,1753321832887,-1251.40894554,0.00019068,2]
[374493294,1753321832898,-1509.05881617,0.00019068,2]
[374493295,1753321832908,-376.36,0.00019068,3]
[374493296,1753321832917,-335.94995693,0.00019068,3]
[374493297,1753321832929,-193.23004307,0.00019068,3]
[374493298,1753321832938,-264.59,0.00019068,3]
[374493299,1753321832947,-793.82,0.00019068,3]
[374493300,1753321832957,-728.0408312,0.00019073,2]
[374493301,1753321832967,-9175.04019935,0.00019078,2]
[374493302,1753321832984,-9889.47207157,0.00019078,2]
[374493323,1753321838689,-4553.09533589,0.0001898,2]
[374493324,1753321838699,-7571.90466411,0.00019078,2]
[374493325,1753321838740,-988.24847875,0.00019078,2]
[374493326,1753321838752,-1070.16714045,0.00019078,2]
[374493327,1753321838764,-2092.5542019,0.00019078,2]
[374493328,1753321838776,-11778.14017649,0.00019078,2]
[374493329,1753321838847,-249022.07212023,0.00019078,2]
[374493515,1753321843774,-2950.60207698,0.0001898,2]
[374493516,1753321843783,-1520.86504493,0.00019078,2]
[374493613,1753321846877,-5610.4394688,0.00019078,2]
[374493614,1753321846892,-822.16,0.00019078,2]
[374493755,1753322104380,3966.70382008,0.000168,2]
[374493757,1753322357870,249.84282,0.00013699,2]
[374493759,1753322407738,4900.0,0.00017918,2]
[374493762,1753322584367,431.46482963,0.00018,2]
[374493767,1753322666053,1643.26202533,0.00025381,120]
[374493769,1753322703780,2585.19732367,0.00018,2]
[374493770,1753322734592,3978.5547967,0.00018,2]
[374493771,1753322757108,-229.7198954,0.00018052,2]
[374493772,1753322757128,-219.56252244,0.00018197,2]
[374493773,1753322757147,-193.6387603,0.00018297,2]
[374493774,1753322757169,-150.0,0.00018533,2]
[374493775,1753322757189,-140.13834686,0.00018638,2]
[374493777,1753322818967,150.0,0.00022932,30]
[374493778,1753322825110,-461.02777685,0.00018639,2]
[374493779,1753322825130,-154.54557356,0.000188,2]
[374493780,1753322825149,-298.98669798,0.000188,2]
[374493781,1753322825169,-327.70241513,0.00018878,2]
[374493782,1753322832081,-352.55609028,0.00018878,2]
[374493783,1753322832103,-188.3174667,0.000189,2]
[374493784,1753322832126,-83.03488618,0.00018954,2]
[374493785,1753322833144,-66.96511382,0.00018954,2]
[374493786,1753322833166,-601.77036007,0.00018976,2]
[374493821,1753323032082,-162.39827097,0.00018409,2]
[374493823,1753323032093,-150.0,0.00018498,2]
[374493825,1753323032103,-598.22963993,0.00018976,2]
[374493827,1753323032112,-263.0,0.00018977,2]
[374493829,1753323032121,-300.0,0.00018977,2]
[374493832,1753323032130,-1200.0,0.00018977,2]
[374493834,1753323032139,-200.0,0.00018978,10]
[374493836,1753323032149,-200.0,0.00018978,10]
[374493838,1753323032159,-200.0,0.00018978,10]
[374493840,1753323032168,-200.0,0.00018978,10]
[374493842,1753323032177,-200.0,0.00018978,10]
[374493843,1753323032187,-200.0,0.00018978,10]
[374493845,1753323032197,-200.0,0.00018978,10]
[374493847,1753323032206,-200.0,0.00018978,10]
[374493849,1753323032219,-247.078909,0.00018978,10]
[374493851,1753323032238,-354.5843221,0.00018978,2]
[374493869,1753323038373,-5374.6625997,0.00018978,2]
[374493880,1753323038475,-89314.87746676,0.00018978,2]
[374493882,1753323038485,-4584.73155081,0.00018978,2]
[374493884,1753323038499,-435.8912386,0.00019,2]
[374493886,1753323038509,-429.1043444,0.00019,2]
[374493889,1753323038519,-178.63997908,0.00019068,2]
[374493891,1753323038530,-979.76,0.00019068,2]
[374493893,1753323038540,-1135.80466495,0.00019078,2]
[374493895,1753323038550,-2489.00990062,0.00019078,2]
[374493897,1753323038560,-9224.902977,0.00019078,2]
[374493899,1753323038573,-429.674968,0.000191,2]
[374493900,1753323038583,-1031.93,0.00019168,3]
[374493902,1753323038592,-515.97,0.00019168,3]
[374493905,1753323038602,-257.98,0.00019168,3]
[374493907,1753323038613,-773.98,0.00019168,3]
[374493908,1753323038622,-500.0,0.00019173,2]
[374493910,1753323038632,-626.34013924,0.00019173,2]
[374493912,1753323038641,-500.0,0.00019173,2]
[374493914,1753323038651,-161.15665472,0.00019173,2]
[374493916,1753323038660,-500.7722303,0.00019173,2]
[374493919,1753323038670,-500.0,0.00019173,2]
[374493921,1753323038680,-501.09762297,0.00019173,2]
[374493923,1753323038690,-500.68626537,0.00019173,2]
[374493924,1753323038700,-500.49828338,0.00019173,2]
[374493926,1753323038710,-233.396538,0.00019173,2]
[374493928,1753323038720,-504.90008393,0.00019173,2]
[374493930,1753323038730,-500.0,0.00019173,2]
[374493932,1753323038741,-500.71619421,0.00019173,2]
[374493934,1753323038750,-500.0,0.00019173,2]
[374493936,1753323038758,-253.40968993,0.00019177,2]
[374493938,1753323038768,-2995.13852681,0.00019178,2]
[374493940,1753323038778,-460.99832061,0.00019178,2]
[374493941,1753323038788,-460.0,0.00019178,2]
[374493942,1753323038797,-462.16873803,0.00019178,2]
[374493943,1753323038807,-460.0,0.00019178,2]
[374493944,1753323038816,-462.50606615,0.00019178,2]
[374493945,1753323038826,-464.76249052,0.00019178,2]
[374493946,1753323038835,-460.0,0.00019178,2]
[374493947,1753323038844,-168.97318105,0.00019178,2]
[374493948,1753323038854,-460.0,0.00019178,2]
[374493949,1753323038864,-462.70065256,0.00019178,2]
[374493950,1753323038874,-461.93058854,0.00019178,2]
[374493952,1753323038883,-463.87631783,0.00019178,2]
[374493953,1753323038892,-461.26708675,0.00019178,2]
[374493954,1753323038902,-460.0,0.00019178,2]
[374493955,1753323038911,-460.0,0.00019178,2]
[374493956,1753323038921,-460.0,0.00019178,2]
[374493958,1753323038930,-461.04020131,0.00019178,2]
[374493959,1753323038940,-461.43064719,0.00019178,2]
[374493960,1753323038950,-460.0,0.00019178,2]
[374493961,1753323038960,-180.85000183,0.00019178,2]
[374493962,1753323038969,-598.8306551,0.00019178,2]
[374493963,1753323038979,-462.95364904,0.00019178,2]
[374493964,1753323038988,-462.41353742,0.00019178,2]
[374493965,1753323038999,-460.0,0.00019178,2]
[374493966,1753323039008,-276.87493731,0.00019178,2]
[374493967,1753323039018,-462.79214819,0.00019178,2]
[374493968,1753323039027,-460.0,0.00019178,2]
[374493969,1753323039036,-506.34245139,0.00019178,2]
[374493970,1753323039046,-460.0,0.00019178,2]
[374493971,1753323039055,-460.0,0.00019178,2]
[374493972,1753323039065,-460.0,0.00019178,2]
[374493973,1753323039074,-460.0,0.00019178,2]
[374493974,1753323039084,-461.80428261,0.00019178,2]
[374493975,1753323039095,-460.0,0.00019178,2]
[374493976,1753323039104,-460.0,0.00019178,2]
[374493977,1753323039114,-461.03207951,0.00019178,2]